[Event "Chess sin Fronteras-IM 2025"]
[Site "San Jose"]
[Date "2025.02.16"]
[Round "6.5"]
[White "Sivakumar, Shaaketh"]
[Black "Sivakumar, Shaashwath"]
[Result "1/2-1/2"]
[Annotator "RC"]
[ECO "D23"]
[WhiteElo "2289"]
[BlackElo "2273"]
[PlyCount "150"]
[EventDate "2025.02.13"]
[EventType "tourn"]
[EventCountry "USA"]
[SourceTitle "playchess.com"]
[Source "ChessBase"]
[SourceQuality "1"]
[TimeControl "5400+30"]

1. Nf3 {[%emt 0:00:57]} d5 {[%emt 0:00:09]} 2. d4 {[%emt 0:00:10]} Nf6 {[%emt 0:00:10]} 3. c4 {[%emt 0:00:03]} c6 {[%emt 0:00:06]} 4. Qc2 {[%emt 0:00:04]} dxc4 {[%emt 0:00:49]} 5. Qxc4 {[%emt 0:00:02]} Bg4 {[%emt 0:00:04]} 6. Nbd2 {[%emt 0:00:07]} e6 {[%emt 0:00:07]} 7. g3 {[%emt 0:00:03]} Be7 {[%emt 0:00:07]} 8. Bg2 {[%emt 0:00:06]} Nbd7 {[%emt 0:00:03]} 9. O-O {[%emt 0:00:10]} O-O {[%emt 0:00:04]} 10. Qb3 {[%emt 0:00:27]} Nb6 {[%emt 0:00:06]} 11. e3 {[%emt 0:00:43]} a5 {[%emt 0:04:28]} 12. Nc4 {[%emt 0:03:21]} Nxc4 {[%emt 0:02:36]} 13. Qxc4 {[%emt 0:00:02]} Qd5 {[%emt 0:03:23]} 14. Qxd5 {[%emt 0:00:02]} exd5 {[%emt 0:02:04]} 15. Ne5 {[%emt 0:00:01]} Bf5 {[%emt 0:00:20]} 16. Bd2 {[%emt 0:00:02]} Ne4 {[%emt 0:08:13]} 17. Bxe4 {[%emt 0:00:05]} dxe4 {[%emt 0:04:37]} 18. a4 {[%emt 0:01:49]} Be6 {[%emt 0:01:27]} 19. Rfc1 {[%emt 0:00:02]} Ra6 {[%emt 0:02:38]} 20. Nc4 {[%emt 0:03:27]} Rfa8 {[%emt 0:00:14]} 21. Kg2 {[%emt 0:00:19]} Bd5 {[%emt 0:07:49]} 22. Rc2 {[%emt 0:02:55]} f6 {[%emt 0:00:58]} 23. Rac1 {[%emt 0:02:58]} Kf7 {[%emt 0:00:43]} 24. Rb1 {[%emt 0:06:04]} Ke6 {[%emt 0:02:05]} 25. Be1 {[%emt 0:01:01]} g5 {[%emt 0:00:40]} 26. g4 {[%emt 0:00:38]} Kf7 {[%emt 0:59:30]} 27. Nd2 {[%emt 1:18:22]} Kg6 {[%emt 0:00:00]} 28. Nf1 {[%emt 0:00:00]} h5 {[%emt 0:00:00]} 29. gxh5+ {[%emt 0:00:00]} Kxh5 {[%emt 0:00:00]} 30. b4 {[%emt 0:00:00]} axb4 {[%emt 0:00:00]} 31. Bxb4 {[%emt 0:00:00]} Bxb4 {[%emt 0:00:00]} 32. Rxb4 {[%emt 0:00:00]} R8a7 {[%emt 0:00:00]} 33. Rcb2 {[%emt 0:00:00]} Rxa4 {[%emt 0:00:00]} 34. Rxa4 {[%emt 0:00:00]} Rxa4 {[%emt 0:00:00]} 35. Rxb7 {[%emt 0:00:00]} Ra2 {[%emt 0:00:00]} 36. Rd7 {[%emt 0:00:00]} Kg6 {[%emt 0:00:00]} 37. Ng3 {[%emt 0:00:00]} Rb2 {[%emt 0:00:00]} 38. Rd6 {[%emt 0:00:00]} Rc2 {[%emt 0:00:00]} 39. Rd8 {[%emt 0:00:00]} Ra2 {[%emt 0:00:00]} 40. h3 {[%emt 0:00:00]} Rb2 {[%emt 0:00:00]} 41. Rd7 {[%emt 0:00:00]} Ra2 {[%emt 0:00:00]} 42. Rd8 {[%emt 0:00:00]} Rb2 {[%emt 0:00:00]} 43. Rd6 {[%emt 0:00:00]} Ra2 {[%emt 0:00:00]} 44. Nf1 {[%emt 0:00:00]} Kf7 {[%emt 0:00:00]} 45. Rd7+ {[%emt 0:00:00]} Kg6 {[%emt 0:00:00]} 46. Ng3 {[%emt 0:00:00]} Rb2 {[%emt 0:00:00]} 47. Rd8 {[%emt 0:00:00]} Ra2 {[%emt 0:00:00]} 48. Rd7 {[%emt 0:00:00]} Rb2 {[%emt 0:00:00]} 49. Rd6 {[%emt 0:00:00]} Ra2 {[%emt 0:00:00]} 50. Nf1 {[%emt 0:00:00]} Kf7 {[%emt 0:00:00]} 51. Rd8 {[%emt 0:00:00]} f5 {[%emt 0:00:00]} 52. h4 {[%emt 0:00:00]} f4 {[%emt 0:00:00]} 53. hxg5 {[%emt 0:00:00]} Kg6 {[%emt 0:00:00]} 54. exf4 {[%emt 0:00:00]} e3+ {[%emt 0:00:00]} 55. Rxd5 {[%emt 0:00:00]} Rxf2+ {[%emt 0:00:00]} 56. Kg3 {[%emt 0:00:00]} cxd5 {[%emt 0:00:00]} 57. Nxe3 {[%emt 0:15:00]} Rd2 {[%emt 0:00:00]} 58. Nxd5 {[%emt 0:00:00]} Rxd4 {[%emt 0:00:00]} 59. Ne7+ {[%emt 0:00:00]} Kh5 {[%emt 0:00:00]} 60. Kf3 {[%emt 0:00:00]} Rd7 {[%emt 0:00:00]} 61. Ng8 {[%emt 0:00:00]} Rd3+ {[%emt 0:00:00]} 62. Ke4 {[%emt 0:00:00]} Ra3 {[%emt 0:00:00]} 63. Nf6+ {[%emt 0:00:00]} Kg6 {[%emt 0:00:00]} 64. Nd5 {[%emt 0:00:00]} Ra1 {[%emt 0:00:00]} 65. Ne7+ {[%emt 0:00:00]} Kf7 {[%emt 0:00:00]} 66. Nc6 Ra6 {[%emt 0:00:00]} 67. Ne5+ {[%emt 0:00:00]} Ke6 {[%emt 0:00:00]} 68. f5+ {[%emt 0:00:00]} Ke7 {[%emt 0:00:00]} 69. Ng6+ {[%emt 0:00:00]} Rxg6 {[%emt 0:00:00]} 70. fxg6 {[%emt 0:00:00]} Kf8 {[%emt 0:00:00]} 71. Ke5 {[%emt 0:00:00]} Kg8 {[%emt 0:00:00]} 72. Ke6 {[%emt 0:00:00]} Kg7 {[%emt 0:00:11]} 73. Kf5 {[%emt 0:00:00]} Kg8 {[%emt 0:00:06]} 74. Kg4 {[%emt 0:00:00]} Kf8 {[%emt 0:00:20]} 75. Kh4 {[%emt 0:00:00]} Kg8 {[%emt 0:00:04]} 1/2-1/2

[Event "Chess sin Fronteras-IM 2025"]
[Site "San Jose"]
[Date "2025.02.17"]
[Round "7.1"]
[White "Sivakumar, Shaashwath"]
[Black "Martinez Romero, Martin"]
[Result "1/2-1/2"]
[Annotator "RC"]
[ECO "E63"]
[WhiteElo "2273"]
[BlackElo "2393"]
[PlyCount "116"]
[EventDate "2025.02.13"]
[EventType "tourn"]
[EventCountry "USA"]
[SourceTitle "playchess.com"]
[Source "ChessBase"]
[SourceQuality "1"]
[TimeControl "5400+30"]

1. d4 {[%emt 0:05:49]} Nf6 {[%emt 0:00:06]} 2. c4 {[%emt 0:00:08]} g6 {[%emt 0:00:03]} 3. g3 {[%emt 0:00:05]} Bg7 {[%emt 0:00:03]} 4. Bg2 {[%emt 0:00:04]} O-O {[%emt 0:00:06]} 5. Nc3 {[%emt 0:00:02]} d6 {[%emt 0:00:13]} 6. Nf3 {[%emt 0:00:05]} Nc6 {[%emt 0:00:03]} 7. O-O {[%emt 0:00:20]} a6 {[%emt 0:00:02]} 8. d5 {[%emt 0:06:25]} Na5 {[%emt 0:00:04]} 9. b3 {[%emt 0:00:29]} Rb8 {[%emt 0:00:15]} 10. Bd2 {[%emt 1:22:03]} c5 {[%emt 0:01:13]} 11. a4 {[%emt 0:00:00]} e6 {[%emt 0:06:29]} 12. dxe6 {[%emt 0:00:00]} fxe6 {[%emt 0:00:45]} 13. Qc2 {[%emt 0:00:00]} Nc6 {[%emt 0:02:43]} 14. Rad1 {[%emt 0:00:00]} Nb4 {[%emt 0:02:05]} 15. Qc1 {[%emt 0:00:00]} Qc7 {[%emt 0:01:11]} 16. Ng5 {[%emt 0:00:00]} Ne8 {[%emt 0:06:03]} 17. Bf4 {[%emt 0:00:00]} e5 {[%emt 0:04:53]} 18. Be3 {[%emt 0:00:00]} Bf5 {[%emt 0:00:35]} 19. Nge4 {[%emt 0:00:00]} Rd8 {[%emt 0:09:26]} 20. Qd2 {[%emt 0:00:00]} Nf6 {[%emt 0:00:41]} 21. Bg5 {[%emt 0:00:00]} Rd7 {[%emt 0:02:29]} 22. Bxf6 {[%emt 0:00:00]} Bxf6 {[%emt 0:00:13]} 23. Nd5 {[%emt 0:00:00]} Nxd5 {[%emt 0:00:30]} 24. Qxd5+ {[%emt 0:00:00]} Kg7 {[%emt 0:00:46]} 25. Qd2 {[%emt 0:00:00]} Bxe4 {[%emt 0:07:34]} 26. Bxe4 {[%emt 0:00:00]} a5 {[%emt 0:00:06]} 27. Qe3 {[%emt 0:00:00]} b6 {[%emt 0:00:14]} 28. Rd5 {[%emt 0:00:00]} Rdd8 {[%emt 0:00:27]} 29. Kg2 {[%emt 0:00:00]} Qf7 {[%emt 0:00:25]} 30. Rdd1 {[%emt 0:00:00]} Be7 {[%emt 0:00:16]} 31. Rd3 {[%emt 0:00:00]} Qe6 {[%emt 0:01:07]} 32. h3 {[%emt 0:00:00]} Rf6 {[%emt 0:01:18]} 33. Qd2 {[%emt 0:00:00]} Rdf8 {[%emt 0:00:07]} 34. Rf3 {[%emt 0:00:00]} Rxf3 {[%emt 0:00:09]} 35. exf3 {[%emt 0:00:00]} Qf7 {[%emt 0:01:01]} 36. Rg1 {[%emt 0:00:00]} Qe6 {[%emt 0:00:12]} 37. Rh1 {[%emt 0:00:00]} Qf7 {[%emt 0:02:32]} 38. Qd3 {[%emt 0:00:00]} Qe6 {[%emt 0:00:17]} 39. h4 {[%emt 0:00:00]} h5 {[%emt 0:01:03]} 40. Kf1 {[%emt 0:00:00]} Rf6 {[%emt 0:00:51]} 41. Ke2 {[%emt 0:00:00]} Rf8 {[%emt 0:03:18]} 42. Kd1 {[%emt 0:00:00]} Rf6 {[%emt 0:01:33]} 43. Kc2 {[%emt 0:00:00]} Rf8 {[%emt 0:00:28]} 44. Kc3 {[%emt 0:00:00]} Kh6 {[%emt 0:02:16]} 45. Qd5 {[%emt 0:00:00]} Qxd5 {[%emt 0:00:57]} 46. cxd5 {[%emt 0:00:33]} c4 {[%emt 0:02:39]} 47. b4 {[%emt 0:00:43]} axb4+ {[%emt 0:01:22]} 48. Kxb4 {[%emt 0:00:15]} g5 {[%emt 0:00:03]} 49. hxg5+ {[%emt 0:01:54]} Bxg5 {[%emt 0:00:01]} 50. Kxc4 {[%emt 0:00:43]} Rc8+ {[%emt 0:00:12]} 51. Kb5 {[%emt 0:00:07]} Bd8 {[%emt 0:00:03]} 52. Ra1 {[%emt 0:01:45]} Rc5+ {[%emt 0:00:14]} 53. Ka6 {[%emt 0:00:17]} Ra5+ {[%emt 0:00:20]} 54. Kb7 {[%emt 0:00:05]} b5 {[%emt 0:00:08]} 55. Kc6 {[%emt 0:00:12]} bxa4 {[%emt 0:00:19]} 56. Kxd6 {[%emt 0:00:07]} a3 {[%emt 0:01:03]} 57. Kc6 {[%emt 0:00:36]} Be7 {[%emt 0:02:06]} 58. Ra2 {[%emt 0:00:21]} Kg5 {[%emt 0:01:07]} 1/2-1/2

[Event "Chess sin Fronteras-IM 2025"]
[Site "San Jose"]
[Date "2025.02.17"]
[Round "7.2"]
[White "Liu, Patrick"]
[Black "Sivakumar, Shaaketh"]
[Result "1/2-1/2"]
[Annotator "RC"]
[ECO "B12"]
[WhiteElo "2159"]
[BlackElo "2289"]
[PlyCount "101"]
[EventDate "2025.02.13"]
[EventType "tourn"]
[EventCountry "USA"]
[SourceTitle "playchess.com"]
[Source "ChessBase"]
[SourceQuality "1"]
[TimeControl "5400+30"]

1. e4 {[%emt 0:00:04]} c6 {[%emt 0:00:14]} 2. d4 {[%emt 1:31:26]} d5 {[%emt 0:00:05]} 3. e5 {[%emt 0:00:00]} Bf5 {[%emt 0:00:05]} 4. Nd2 {[%emt 0:00:00]} e6 {[%emt 0:00:06]} 5. Nb3 {[%emt 0:00:00]} Nd7 {[%emt 0:00:10]} 6. Nf3 {[%emt 0:00:00]} Ne7 {[%emt 0:00:15]} 7. Be2 {[%emt 0:00:00]} Bg4 {[%emt 0:00:04]} 8. h3 {[%emt 0:00:00]} Bxf3 {[%emt 0:00:06]} 9. Bxf3 {[%emt 0:00:00]} Ng6 {[%emt 0:00:19]} 10. Be2 {[%emt 0:00:00]} Be7 {[%emt 0:00:11]} 11. O-O {[%emt 0:00:00]} O-O {[%emt 0:00:05]} 12. Be3 {[%emt 0:00:00]} Rc8 {[%emt 0:00:50]} 13. g3 {[%emt 0:00:00]} c5 {[%emt 0:00:14]} 14. c3 {[%emt 0:00:00]} cxd4 {[%emt 0:00:19]} 15. cxd4 {[%emt 0:00:00]} Nb6 {[%emt 0:00:04]} 16. Nd2 {[%emt 0:00:00]} Bb4 {[%emt 0:03:04]} 17. b3 {[%emt 0:00:00]} Ne7 {[%emt 0:00:20]} 18. Bd3 {[%emt 0:00:00]} Nc6 {[%emt 0:04:46]} 19. Nf3 {[%emt 0:00:00]} f5 {[%emt 0:02:12]} 20. a3 {[%emt 0:00:00]} Be7 {[%emt 0:00:19]} 21. h4 {[%emt 0:00:00]} Qd7 {[%emt 0:05:22]} 22. Ng5 {[%emt 0:00:00]} Nd8 {[%emt 0:01:14]} 23. Kg2 {[%emt 0:00:00]} a5 {[%emt 0:00:32]} 24. a4 {[%emt 0:00:00]} Bb4 {[%emt 0:00:26]} 25. Rh1 {[%emt 0:00:00]} Nf7 {[%emt 0:01:29]} 26. Nh3 {[%emt 0:00:00]} Rc3 {[%emt 0:05:25]} 27. Nf4 {[%emt 0:00:00]} Qe7 {[%emt 0:00:14]} 28. Kh3 {[%emt 0:00:00]} Rfc8 {[%emt 0:02:13]} 29. Rg1 {[%emt 0:00:00]} Kh8 {[%emt 0:06:22]} 30. Ne2 {[%emt 0:00:00]} R3c7 {[%emt 0:00:23]} 31. g4 {[%emt 0:00:00]} fxg4+ {[%emt 0:00:33]} 32. Rxg4 {[%emt 0:00:00]} Nd7 {[%emt 0:00:29]} 33. Qg1 {[%emt 0:00:00]} Nfxe5 {[%emt 0:01:20]} 34. dxe5 {[%emt 0:00:00]} Nxe5 {[%emt 1:07:40]} 35. Bg5 {[%emt 0:00:00]} Qd7 {[%emt 0:00:00]} 36. Bb5 {[%emt 0:01:19]} Nc6 {[%emt 0:00:00]} 37. h5 {[%emt 0:02:13]} Qf7 {[%emt 0:00:00]} 38. h6 {[%emt 0:03:33]} e5 {[%emt 0:00:00]} 39. hxg7+ {[%emt 0:00:43]} Kg8 {[%emt 0:00:00]} 40. Qg3 {[%emt 0:02:16]} Qe6 {[%emt 0:00:00]} 41. Kh2 {[%emt 0:01:19]} Rxg7 {[%emt 0:00:00]} 42. Rg1 {[%emt 0:00:45]} h5 {[%emt 0:00:00]} 43. Rh4 {[%emt 0:00:25]} Bd6 {[%emt 0:00:00]} 44. Rxh5 {[%emt 0:01:19]} e4 {[%emt 0:00:00]} 45. Nf4 {[%emt 0:00:11]} Qf5 {[%emt 0:00:00]} 46. Bxc6 {[%emt 0:04:41]} Rxc6 {[%emt 0:00:00]} 47. Qh4 {[%emt 0:01:59]} Be5 {[%emt 0:00:00]} 48. Kh1 {[%emt 0:01:31]} Rcg6 {[%emt 0:00:00]} 49. Kh2 {[%emt 0:01:16]} Rc6 50. Rh8+ {[%emt 0:00:30]} Kf7 {[%emt 0:08:00]} 51. Rh5 {[%emt 0:00:30]} 1/2-1/2

[Event "Chess sin Fronteras-IM 2025"]
[Site "San Jose"]
[Date "2025.02.17"]
[Round "7.3"]
[White "Jimenez Garcia, Emmanuel"]
[Black "Deng, Henry"]
[Result "1/2-1/2"]
[Annotator "RC"]
[ECO "B21"]
[WhiteElo "2364"]
[BlackElo "2321"]
[PlyCount "59"]
[EventDate "2025.02.13"]
[EventType "tourn"]
[EventCountry "USA"]
[SourceTitle "playchess.com"]
[Source "ChessBase"]
[SourceQuality "1"]
[TimeControl "5400+30"]

1. e4 {[%emt 0:01:33]} c5 {[%emt 0:00:06]} 2. Be2 {[%emt 0:00:30]} Nc6 {[%emt 0:01:11]} 3. f4 {[%emt 0:00:20]} e6 {[%emt 0:01:24]} 4. Nf3 {[%emt 0:00:21]} d5 {[%emt 0:00:05]} 5. d3 {[%emt 0:00:09]} dxe4 {[%emt 0:01:30]} 6. dxe4 {[%emt 0:00:03]} Qxd1+ {[%emt 0:00:07]} 7. Bxd1 {[%emt 0:00:06]} Nf6 {[%emt 0:01:17]} 8. e5 {[%emt 0:04:38]} Nd5 {[%emt 0:01:51]} 9. c4 {[%emt 0:00:44]} Ndb4 {[%emt 0:00:12]} 10. Nc3 {[%emt 0:02:55]} Be7 {[%emt 0:01:18]} 11. Ke2 {[%emt 0:02:38]} O-O {[%emt 0:00:59]} 12. a3 {[%emt 0:00:16]} Na6 {[%emt 0:00:07]} 13. Ba4 {[%emt 0:21:10]} Bd7 {[%emt 0:01:31]} 14. Rd1 {[%emt 0:02:56]} Rfd8 {[%emt 0:01:03]} 15. Nb5 {[%emt 0:00:53]} Be8 {[%emt 0:03:48]} 16. Be3 {[%emt 0:19:08]} f6 {[%emt 0:02:58]} 17. g4 {[%emt 0:01:25]} Rac8 {[%emt 0:03:51]} 18. Bc2 {[%emt 0:02:38]} Nc7 {[%emt 0:07:15]} 19. Rxd8 {[%emt 0:15:39]} Nxd8 {[%emt 0:00:17]} 20. a4 {[%emt 0:01:20]} Nc6 {[%emt 0:04:36]} 21. Rd1 {[%emt 0:01:06]} Na6 {[%emt 0:10:36]} 22. Be4 {[%emt 0:01:16]} Nab4 {[%emt 0:12:48]} 23. exf6 {[%emt 0:02:53]} gxf6 {[%emt 0:02:07]} 24. Nd6 {[%emt 0:00:29]} Bxd6 {[%emt 0:01:28]} 25. Rxd6 {[%emt 0:00:03]} b6 {[%emt 0:02:48]} 26. Rxe6 {[%emt 0:03:38]} Bf7 {[%emt 0:01:28]} 27. Rxf6 {[%emt 0:00:28]} Bxc4+ {[%emt 0:00:04]} 28. Kf2 {[%emt 0:00:29]} Bd3 {[%emt 0:02:07]} 29. Rxc6 {[%emt 0:09:57]} Kh8 30. Re6 1/2-1/2

[Event "Chess sin Fronteras-IM 2025"]
[Site "San Jose"]
[Date "2025.02.17"]
[Round "7.5"]
[White "Yan, Nathan"]
[Black "Paredes Lagos, Anthony Javier"]
[Result "1-0"]
[Annotator "RC"]
[ECO "B06"]
[WhiteElo "2152"]
[BlackElo "2338"]
[PlyCount "84"]
[EventDate "2025.02.13"]
[EventType "tourn"]
[EventCountry "USA"]
[SourceTitle "playchess.com"]
[Source "ChessBase"]
[SourceQuality "1"]
[TimeControl "5400+30"]

1. e4 {[%emt 0:00:09]} g6 {[%emt 0:01:38]} 2. d4 {[%emt 0:00:12]} c6 {[%emt 0:00:11]} 3. Nc3 {[%emt 0:00:11]} Bg7 {[%emt 0:00:19]} 4. Be3 {[%emt 0:00:08]} b5 {[%emt 0:01:27]} 5. Qd2 {[%emt 0:00:10]} d6 {[%emt 0:01:01]} 6. h4 {[%emt 0:00:56]} h5 {[%emt 0:01:57]} 7. Nf3 {[%emt 0:00:20]} Nd7 {[%emt 0:02:01]} 8. Ng5 {[%emt 0:00:52]} Ngf6 {[%emt 0:00:41]} 9. f3 {[%emt 0:00:25]} Bb7 {[%emt 0:01:26]} 10. O-O-O {[%emt 0:05:26]} Qc7 {[%emt 0:01:11]} 11. Kb1 {[%emt 0:04:07]} a6 {[%emt 0:00:08]} 12. Ne2 {[%emt 0:02:47]} c5 {[%emt 0:00:37]} 13. d5 {[%emt 0:01:19]} Nb6 {[%emt 0:06:05]} 14. Nf4 {[%emt 0:00:58]} Bc8 {[%emt 0:01:29]} 15. Qf2 {[%emt 0:06:20]} Nc4 {[%emt 0:09:02]} 16. Bxc4 {[%emt 0:08:11]} bxc4 {[%emt 0:00:04]} 17. Bd2 {[%emt 0:00:18]} Rb8 {[%emt 0:02:41]} 18. Bc3 {[%emt 0:03:09]} Ng4 {[%emt 0:00:26]} 19. Qd2 {[%emt 0:01:18]} Ne5 {[%emt 0:00:22]} 20. g4 Rb5 {[%emt 0:13:11]} 21. gxh5 {[%emt 0:13:31]} gxh5 {[%emt 0:00:05]} 22. Ne2 {[%emt 0:02:58]} f6 {[%emt 0:11:39]} 23. f4 {[%emt 0:08:53]} Ng4 {[%emt 0:01:17]} 24. Nh3 {[%emt 0:01:46]} Qb6 {[%emt 0:05:07]} 25. a4 {[%emt 0:02:46]} Kf7 {[%emt 0:05:43]} 26. axb5 {[%emt 0:01:01]} axb5 {[%emt 0:00:02]} 27. b4 {[%emt 0:04:28]} cxb3 {[%emt 0:02:25]} 28. cxb3 {[%emt 0:00:10]} b4 {[%emt 0:00:26]} 29. Bb2 {[%emt 0:00:23]} Ba6 {[%emt 0:00:45]} 30. Nc1 {[%emt 0:01:04]} c4 {[%emt 0:02:54]} 31. Qd4 {[%emt 0:01:36]} Qa5 {[%emt 0:00:32]} 32. Ng5+ {[%emt 0:00:59]} Kg6 {[%emt 0:02:47]} 33. f5+ {[%emt 0:00:49]} Kh6 {[%emt 0:00:02]} 34. Nf7+ {[%emt 0:00:30]} Kh7 {[%emt 0:00:08]} 35. Nxh8 {[%emt 0:00:16]} c3 {[%emt 0:03:08]} 36. Ng6 {[%emt 0:02:53]} Qc7 {[%emt 0:01:58]} 37. Bxc3 {[%emt 0:03:52]} bxc3 {[%emt 0:00:04]} 38. Kc2 {[%emt 0:00:44]} Bh6 {[%emt 0:00:12]} 39. Qxc3 {[%emt 0:00:38]} Qb6 {[%emt 0:03:47]} 40. Kb1 {[%emt 0:01:31]} Be3 {[%emt 0:03:41]} 41. Qc6 {[%emt 0:03:09]} Qb8 {[%emt 0:02:55]} 42. Qxa6 {[%emt 0:00:39]} Bxc1 {[%emt 0:00:04]} 1-0

[Event "Chess sin Fronteras-IM 2025"]
[Site "San Jose"]
[Date "2025.02.17"]
[Round "8.1"]
[White "Martinez Romero, Martin"]
[Black "Paredes Lagos, Anthony Javier"]
[Result "1/2-1/2"]
[Annotator "ChessBase"]
[ECO "C67"]
[WhiteElo "2393"]
[BlackElo "2338"]
[PlyCount "43"]
[EventDate "2025.02.13"]
[EventType "tourn"]
[EventCountry "USA"]
[SourceTitle "playchess.com"]
[Source "ChessBase"]
[SourceQuality "1"]
[TimeControl "5400+30"]

1. e4 {[%emt 0:00:02]} e5 {[%emt 0:15:51]} 2. Nf3 {[%emt 0:01:50]} Nc6 {[%emt 0:00:09]} 3. Bb5 {[%emt 0:00:01]} Nf6 {[%emt 0:00:09]} 4. O-O {[%emt 0:00:03]} Nxe4 {[%emt 0:00:09]} 5. d4 {[%emt 0:00:06]} Nd6 {[%emt 0:00:06]} 6. dxe5 {[%emt 0:00:04]} Nxb5 {[%emt 0:00:10]} 7. a4 {[%emt 0:00:01]} Nbd4 {[%emt 0:02:37]} 8. Nxd4 {[%emt 0:00:04]} d6 {[%emt 0:00:36]} 9. Nxc6 {[%emt 0:00:15]} bxc6 {[%emt 0:00:06]} 10. exd6 {[%emt 0:00:07]} Qxd6 {[%emt 0:00:22]} 11. Qxd6 {[%emt 0:00:04]} cxd6 {[%emt 0:00:23]} 12. Re1+ {[%emt 0:00:10]} Be7 {[%emt 0:00:14]} 13. Bf4 {[%emt 0:00:07]} Be6 {[%emt 0:00:08]} 14. Nc3 {[%emt 0:00:04]} O-O {[%emt 0:00:19]} 15. Rad1 {[%emt 0:00:06]} Rfd8 {[%emt 0:00:08]} 16. Ne4 {[%emt 0:00:22]} d5 {[%emt 0:00:06]} 17. Ng5 {[%emt 0:00:04]} Bxg5 {[%emt 0:00:06]} 18. Bxg5 {[%emt 0:00:01]} Rdb8 {[%emt 0:00:11]} 19. b3 {[%emt 0:00:04]} Re8 {[%emt 0:00:15]} 20. h3 {[%emt 0:00:08]} Bf5 {[%emt 0:00:15]} 21. Rxe8+ {[%emt 0:00:11]} Rxe8 {[%emt 0:00:03]} 22. Rd2 {[%emt 0:00:13]} 1/2-1/2

[Event "Chess sin Fronteras-IM 2025"]
[Site "San Jose"]
[Date "2025.02.17"]
[Round "8.3"]
[White "Deng, Henry"]
[Black "Perdomo, Leandro"]
[Result "1/2-1/2"]
[Annotator "RC"]
[ECO "C56"]
[WhiteElo "2321"]
[BlackElo "2364"]
[PlyCount "43"]
[EventDate "2025.02.13"]
[EventType "tourn"]
[EventCountry "USA"]
[SourceTitle "playchess.com"]
[Source "ChessBase"]
[SourceQuality "1"]
[TimeControl "5400+30"]

1. e4 {[%emt 0:00:01]} e5 {[%emt 0:00:15]} 2. Nf3 {[%emt 0:00:37]} Nc6 {[%emt 0:00:03]} 3. Bc4 {[%emt 0:00:07]} Nf6 {[%emt 0:00:05]} 4. d4 {[%emt 0:00:07]} exd4 {[%emt 0:00:03]} 5. e5 {[%emt 0:00:03]} d5 {[%emt 0:00:06]} 6. Bb5 {[%emt 0:00:03]} Ne4 {[%emt 0:00:08]} 7. Nxd4 {[%emt 0:00:05]} Bc5 {[%emt 0:00:15]} 8. Be3 {[%emt 0:00:12]} O-O {[%emt 0:00:29]} 9. Nxc6 {[%emt 0:00:43]} bxc6 {[%emt 0:00:05]} 10. Bxc5 {[%emt 0:00:08]} Nxc5 {[%emt 0:00:06]} 11. Bxc6 {[%emt 0:00:08]} Rb8 {[%emt 0:00:04]} 12. Qxd5 {[%emt 0:00:16]} Qe7 {[%emt 0:00:10]} 13. O-O {[%emt 0:00:54]} Rxb2 {[%emt 0:00:16]} 14. Nc3 {[%emt 0:01:27]} Rxc2 {[%emt 0:00:48]} 15. Qd4 {[%emt 0:01:46]} Ne6 {[%emt 0:01:00]} 16. Qd3 {[%emt 0:01:38]} Rb2 {[%emt 0:00:04]} 17. Nd5 {[%emt 0:10:59]} Qc5 {[%emt 0:00:20]} 18. Rac1 {[%emt 0:02:24]} Qd4 {[%emt 0:00:19]} 19. Qa3 {[%emt 0:14:29]} Rd2 {[%emt 0:01:58]} 20. Qa5 {[%emt 0:08:18]} Qb2 {[%emt 0:36:35]} 21. Rb1 {[%emt 0:11:24]} Qxa2 {[%emt 0:03:43]} 22. Qa4 {[%emt 0:45:41]} 1/2-1/2

[Event "Chess sin Fronteras-IM 2025"]
[Site "San Jose"]
[Date "2025.02.17"]
[Round "8.4"]
[White "Sivakumar, Shaaketh"]
[Black "Jimenez Garcia, Emmanuel"]
[Result "1/2-1/2"]
[Annotator "RC"]
[ECO "B53"]
[WhiteElo "2289"]
[BlackElo "2364"]
[PlyCount "66"]
[EventDate "2025.02.13"]
[EventType "tourn"]
[EventCountry "USA"]
[SourceTitle "playchess.com"]
[Source "ChessBase"]
[SourceQuality "1"]
[TimeControl "5400+30"]

1. e4 {[%emt 0:00:48]} c5 {[%emt 0:00:53]} 2. Nf3 {[%emt 0:00:05]} d6 {[%emt 0:00:23]} 3. d4 {[%emt 0:00:02]} cxd4 {[%emt 0:00:04]} 4. Qxd4 {[%emt 0:00:03]} Nc6 {[%emt 0:00:22]} 5. Bb5 {[%emt 0:00:04]} a6 {[%emt 0:00:31]} 6. Bxc6+ {[%emt 0:00:08]} bxc6 {[%emt 0:00:02]} 7. O-O {[%emt 0:00:38]} e5 {[%emt 0:00:26]} 8. Qe3 {[%emt 0:00:30]} Nf6 {[%emt 0:00:26]} 9. Rd1 {[%emt 0:00:26]} Qc7 {[%emt 0:01:50]} 10. c4 {[%emt 0:00:37]} Be7 {[%emt 0:08:38]} 11. b3 {[%emt 0:01:31]} O-O {[%emt 0:05:55]} 12. Bb2 {[%emt 0:00:23]} Ng4 {[%emt 0:02:13]} 13. Qe2 {[%emt 0:00:29]} f5 {[%emt 0:00:22]} 14. Nbd2 {[%emt 0:00:45]} c5 {[%emt 0:03:39]} 15. exf5 {[%emt 0:01:22]} Bxf5 {[%emt 0:10:19]} 16. Ne4 {[%emt 0:00:06]} Nf6 {[%emt 0:10:34]} 17. Nfd2 {[%emt 0:00:45]} Qb7 {[%emt 0:01:03]} 18. Nc3 {[%emt 0:04:16]} Rae8 {[%emt 0:07:46]} 19. Nf1 {[%emt 0:01:36]} Bg6 {[%emt 0:00:23]} 20. Ng3 {[%emt 0:00:51]} h5 {[%emt 0:01:38]} 21. Re1 {[%emt 0:01:56]} e4 {[%emt 0:09:22]} 22. Qd2 {[%emt 0:04:06]} h4 {[%emt 0:01:08]} 23. Nge2 {[%emt 0:00:51]} Ng4 {[%emt 0:02:53]} 24. Rf1 {[%emt 0:01:49]} h3 {[%emt 0:01:36]} 25. Qd5+ {[%emt 0:01:04]} Qxd5 {[%emt 0:03:27]} 26. Nxd5 {[%emt 0:00:06]} hxg2 {[%emt 0:02:40]} 27. Kxg2 {[%emt 0:00:06]} Bd8 {[%emt 0:00:42]} 28. Ng3 {[%emt 0:06:21]} Rf3 {[%emt 0:04:29]} 29. Rae1 {[%emt 0:03:13]} Ref8 {[%emt 0:01:36]} 30. Nxe4 {[%emt 0:02:01]} Bh4 {[%emt 0:07:18]} 31. Re2 {[%emt 0:02:09]} Bh5 {[%emt 0:07:05]} 32. h3 {[%emt 1:07:23]} Nh6 {[%emt 0:06:47]} 33. Nxd6 {[%emt 0:00:30]} Rxh3 {[%emt 0:00:30]} 1/2-1/2